bitfinex/quotes_BTCUSD_20241128
["timestamp","ask_amount","ask_price","bid_price","bid_amount"]
[1732807575484,0.254842,95381.0,95380.0,0.0008602]
[1732807575738,0.254842,95381.0,95380.0,0.0018602]
[1732807575951,0.104842,95381.0,95380.0,0.0018602]
[1732807576209,0.209654,95395.0,95380.0,0.0238602]
[1732807576453,0.104842,95381.0,95380.0,0.0258602]
[1732807576728,0.002,95381.0,95380.0,0.23540402]
[1732807576942,0.002,95381.0,95380.0,0.24354841]
[1732807577161,0.15189246,95400.0,95380.0,0.12870541]
[1732807577377,0.20966,95393.0,95382.0,0.023]
[1732807577628,0.002,95395.0,95389.0,0.023]
[1732807577856,0.002,95395.0,95391.0,0.023]
[1732807578120,0.002,95395.0,95393.0,0.023]
[1732807578324,0.002,95395.0,95394.0,0.23067321]
[1732807578585,0.002,95395.0,95394.0,0.31217321]
[1732807578794,0.002,95395.0,95394.0,0.20734521]
[1732807579012,0.104827,95395.0,95394.0,0.20734521]
[1732807579264,0.104827,95395.0,95382.0,0.01]
[1732807579265,0.209628,95407.0,95395.0,0.023]
[1732807579474,0.104826,95396.0,95395.0,0.023]
[1732807579731,0.104829,95393.0,95392.0,0.023]
[1732807580892,0.209645,95399.0,95383.0,0.023]
[1732807581112,0.104836,95387.0,95383.0,0.023]
[1732807581359,0.209667,95390.0,95381.0,0.209685]
[1732807581625,0.104839,95384.0,95383.0,0.023]
[1732807581846,0.001,95393.0,95383.0,0.023]
[1732807582074,0.104837,95386.0,95383.0,0.023]
[1732807582336,0.001,95393.0,95383.0,0.028]
[1732807582569,0.20961,95416.0,95402.0,0.023]
[1732807582832,0.209599,95420.0,95402.0,0.31086421]
[1732807583051,0.209597,95421.0,95414.0,0.104805]
[1732807583265,0.104799,95421.0,95416.0,0.127803]
[1732807583526,0.0098698,95422.0,95418.0,0.023]
[1732807583729,0.0098698,95422.0,95409.0,0.209622]
[1732807583730,0.082,95454.0,95424.0,0.023]
[1732807583953,0.104787,95432.0,95428.0,0.023]
[1732807584224,0.0116373,95438.0,95430.0,0.023]
[1732807584476,0.0017246,95438.0,95435.0,0.023]
[1732807584716,0.0017246,95438.0,95437.0,0.023]
[1732807585194,0.0017246,95438.0,95430.0,0.10284521]
[1732807585195,0.104785,95433.0,95432.0,0.023]
[1732807585449,0.104794,95425.0,95424.0,0.03]
[1732807585701,0.104794,95425.0,95414.0,0.0817]
[1732807585702,0.104805,95415.0,95414.0,0.003]
[1732807585919,0.209597,95421.0,95415.0,0.023]
[1732807586137,0.104799,95421.0,95415.0,0.023]
[1732807586350,0.0099544,95434.0,95415.0,0.023]
[1732807586577,0.0099544,95434.0,95409.0,0.209622]
[1732807586578,0.1048,95420.0,95416.0,0.00185481]
[1732807586789,0.0099544,95434.0,95416.0,0.104804]
[1732807586790,0.104798,95422.0,95416.0,0.104804]
[1732807587004,0.209588,95425.0,95416.0,0.023]
[1732807587241,0.104803,95417.0,95416.0,0.023]
[1732807587460,0.104803,95417.0,95415.0,0.003]
[1732807587461,0.104804,95416.0,95415.0,0.003]
[1732807587686,0.104825,95397.0,95390.0,0.314497]
[1732807587901,0.00186438,95418.0,95391.0,0.10284521]
[1732807587902,0.15,95418.0,95391.0,0.10284521]
[1732807588123,0.00186438,95417.0,95392.0,0.00185513]
[1732807588370,0.10666738,95417.0,95416.0,0.009]
[1732807588610,0.10666738,95417.0,95393.0,0.10284521]
[1732807588611,0.209606,95417.0,95394.0,0.00185512]
[1732807588849,0.104826,95396.0,95395.0,0.10284521]
[1732807589061,0.104825,95397.0,95395.0,0.10284521]
[1732807589314,0.15,95419.0,95391.0,0.023]
[1732807589315,0.10483,95392.0,95391.0,0.023]
[1732807589544,0.009881,95417.0,95390.0,0.009]
[1732807589545,0.104831,95391.0,95390.0,0.009]
[1732807589996,0.098831,95391.0,95390.0,0.009]
[1732807590473,0.104839,95384.0,95380.0,0.01145811]
[1732807590708,0.104839,95384.0,95381.0,0.12584521]
[1732807590915,0.104837,95386.0,95381.0,0.12584521]
[1732807591159,0.104833,95390.0,95383.0,0.104839]
[1732807591369,0.104833,95389.0,95384.0,0.12584521]
[1732807591589,0.0098965,95401.0,95384.0,0.12584521]
[1732807592061,0.00186438,95408.0,95386.0,0.023]
[1732807592268,0.00186438,95408.0,95386.0,0.12584521]
[1732807592516,0.104835,95388.0,95386.0,0.12584521]
[1732807592716,0.104834,95389.0,95386.0,0.12584521]
[1732807592933,0.00186438,95408.0,95386.0,0.12584521]
[1732807592934,0.62030796,95472.0,95386.0,0.12584521]
[1732807593178,0.00186438,95408.0,95380.0,0.0238602]
[1732807593416,0.209664,95391.0,95390.0,0.003]
[1732807593632,0.314495,95391.0,95390.0,0.003]
[1732807593871,0.209575,95432.0,95390.0,0.003]
[1732807593872,0.01,95427.0,95392.0,0.023]
[1732807594108,0.01,95427.0,95394.0,0.023]
[1732807594109,0.209628,95407.0,95394.0,0.023]
[1732807594335,0.104815,95406.0,95401.0,0.023]
[1732807594555,0.209626,95408.0,95401.0,0.023]
[1732807594760,0.20962,95411.0,95398.0,0.023]
[1732807594975,0.104818,95404.0,95400.0,0.023]
[1732807595433,0.104819,95403.0,95398.0,0.10284521]
[1732807595655,0.104819,95403.0,95399.0,0.023]
[1732807595876,0.104819,95403.0,95402.0,0.023]
[1732807596092,0.209626,95408.0,95399.0,0.023]
[1732807596324,0.0098991,95421.0,95401.0,0.023]
[1732807596540,0.0098991,95421.0,95403.0,0.023]
[1732807596764,0.0098991,95421.0,95400.0,0.009]
[1732807596765,0.1048,95420.0,95414.0,0.023]
[1732807597031,0.43766554,95440.0,95416.0,0.023]
[1732807597032,0.104803,95417.0,95416.0,0.023]
[1732807597242,0.104803,95417.0,95414.0,0.10284521]
[1732807597243,0.209603,95419.0,95415.0,0.023]
[1732807597459,0.209607,95417.0,95415.0,0.023]
[1732807597679,0.09977798,95416.0,95415.0,0.023]
[1732807597908,0.37810954,95430.0,95400.0,0.023]
[1732807597909,0.104819,95403.0,95400.0,0.023]
[1732807598124,0.104819,95403.0,95400.0,0.12584521]
[1732807598406,0.15,95419.0,95401.0,0.10284521]
[1732807598616,0.15,95425.0,95416.0,0.001]
[1732807598843,0.0098225,95420.0,95417.0,0.10284521]
[1732807599063,0.0098225,95420.0,95416.0,0.001]
[1732807599064,0.104803,95417.0,95416.0,0.001]
[1732807599548,0.254803,95417.0,95416.0,0.001]
[1732807600070,0.209601,95419.0,95400.0,0.009]
[1732807600071,0.10482,95401.0,95400.0,0.009]
[1732807600283,0.25482,95401.0,95400.0,0.013]
[1732807600502,0.25482,95401.0,95400.0,0.02283405]
[1732807600747,0.25482,95401.0,95400.0,0.01055605]
[1732807600952,0.25482,95401.0,95400.0,0.01704762]
[1732807601216,0.25482,95401.0,95400.0,0.00655605]
[1732807601666,0.25482,95401.0,95400.0,0.01555605]
[1732807601667,0.15,95401.0,95400.0,0.01555605]
[1732807601886,0.104817,95404.0,95401.0,0.023]
[1732807602109,0.15,95416.0,95402.0,0.00655605]
[1732807602325,0.104817,95404.0,95403.0,0.04004686]
[1732807602983,0.15,95414.0,95403.0,0.14474723]
[1732807603227,0.0098604,95420.0,95405.0,0.023]
[1732807603488,0.0098604,95420.0,95406.0,0.01704686]
[1732807603489,0.209608,95416.0,95406.0,0.01704686]
[1732807603719,0.209608,95416.0,95403.0,0.10284521]
[1732807603720,0.104812,95409.0,95407.0,0.04004686]
[1732807603959,0.104812,95409.0,95408.0,0.01704686]
[1732807604176,0.104812,95409.0,95408.0,0.00655605]
[1732807604394,0.104812,95409.0,95408.0,0.01704618]
[1732807605159,0.09901482,95409.0,95408.0,0.01704618]
[1732807605395,0.09901482,95409.0,95408.0,0.01904618]
[1732807605638,0.15,95419.0,95408.0,0.01904618]
[1732807605639,0.209607,95417.0,95408.0,0.01904618]
[1732807605874,0.209607,95417.0,95409.0,0.01704618]
[1732807606106,0.209607,95417.0,95408.0,0.01]
[1732807606382,0.0474,95442.0,95408.0,0.01]
[1732807606383,0.209581,95429.0,95411.0,0.023]
[1732807606624,0.16,95440.0,95414.0,0.209612]
[1732807606625,0.15,95431.0,95414.0,0.209612]
[1732807606837,0.15,95429.0,95416.0,0.023]
[1732807607073,0.15,95429.0,95419.0,0.209601]
[1732807607289,0.15,95429.0,95422.0,0.104797]
[1732807607511,0.15,95429.0,95423.0,0.11988824]
[1732807607732,0.15,95429.0,95424.0,0.04004303]
[1732807607977,0.15,95433.0,95426.0,0.023]
[1732807608185,0.104784,95434.0,95427.0,0.11988824]
[1732807608408,0.15,95437.0,95428.0,0.01704303]
[1732807608409,0.209564,95436.0,95428.0,0.01704303]
[1732807608677,0.0017246,95438.0,95429.0,0.10940022]
[1732807608678,0.15,95435.0,95429.0,0.10940022]
[1732807608911,0.0017246,95438.0,95429.0,0.10284521]
[1732807608912,0.254788,95430.0,95429.0,0.10284521]
[1732807609109,0.254788,95430.0,95429.0,0.10939998]
[1732807610219,0.254788,95430.0,95429.0,0.10284521]
[1732807610653,0.254788,95430.0,95429.0,0.10584521]
[1732807611363,0.254788,95430.0,95429.0,0.10284521]
[1732807611597,0.254788,95430.0,95429.0,0.11184521]
[1732807611818,0.254788,95430.0,95429.0,0.11484521]
[1732807612369,0.254788,95430.0,95429.0,0.003]
[1732807612835,0.2112846,95438.0,95429.0,0.003]
[1732807612836,0.209562,95437.0,95429.0,0.02422983]
[1732807613104,0.0017246,95438.0,95429.0,0.02422983]
[1732807613105,0.104787,95431.0,95430.0,0.10469982]
[1732807613336,0.104787,95431.0,95430.0,0.10940054]
[1732807614022,0.0017246,95438.0,95431.0,0.023]
[1732807614228,0.0017246,95438.0,95430.0,0.12174246]
[1732807614229,0.0017246,95438.0,95433.0,0.023]
[1732807614476,0.0017246,95438.0,95434.0,0.13484982]
[1732807614703,0.0017246,95438.0,95437.0,0.104781]
[1732807614958,0.0017246,95438.0,95437.0,0.24951973]
[1732807615168,0.0017246,95438.0,95437.0,0.33697254]
[1732807615387,0.0017246,95438.0,95437.0,0.47386555]
[1732807615612,0.0017246,95438.0,95437.0,0.48697212]
[1732807615825,0.0017246,95438.0,95437.0,0.34807314]
[1732807616263,0.0017246,95438.0,95437.0,0.35707314]
[1732807616525,0.0017246,95438.0,95437.0,0.3492485]
[1732807617170,0.0017246,95438.0,95437.0,0.34924544]
[1732807617592,0.0017246,95438.0,95437.0,0.34024544]
[1732807617807,0.0017246,95438.0,95437.0,0.34396906]
[1732807618037,0.0017246,95438.0,95437.0,0.35296906]
[1732807618251,0.0017246,95438.0,95437.0,0.24118806]
[1732807618556,0.0017246,95438.0,95437.0,0.33286347]
[1732807618804,0.0017246,95438.0,95437.0,0.33086347]
[1732807619005,0.00109698,95438.0,95437.0,0.33986347]
[1732807619221,0.00109698,95438.0,95437.0,0.33286347]
[1732807619440,0.00109698,95438.0,95437.0,0.32386347]
[1732807619651,0.00109698,95438.0,95437.0,0.33286347]
[1732807620136,0.20952,95456.0,95439.0,0.023]
[1732807620358,0.10477,95447.0,95441.0,0.023]
[1732807620590,0.00186438,95473.0,95442.0,0.1093983]
[1732807620807,0.104774,95444.0,95443.0,0.00840721]
[1732807621025,0.104771,95446.0,95443.0,0.1093983]
[1732807621268,0.104771,95446.0,95444.0,0.1093983]
[1732807621493,0.209533,95450.0,95445.0,0.00655309]
[1732807621707,0.209489,95470.0,95441.0,0.127776]
[1732807621708,0.209511,95460.0,95446.0,0.1093983]
[1732807621918,0.209511,95460.0,95447.0,0.00655309]
[1732807622134,0.104769,95448.0,95442.0,0.00185415]
[1732807622376,0.21946,95484.0,95443.0,0.11988346]
[1732807622613,0.104773,95444.0,95443.0,0.014]
[1732807622815,0.104773,95444.0,95443.0,0.005]
[1732807623315,0.10663738,95444.0,95443.0,0.005]
[1732807623606,0.25663738,95444.0,95443.0,0.005]
[1732807623808,0.254773,95444.0,95443.0,0.005]
[1732807624501,0.104803,95417.0,95410.0,0.10666469]
[1732807624719,0.15,95443.0,95412.0,0.104808]
[1732807624957,0.104801,95419.0,95413.0,0.10469992]
[1732807625178,0.00186438,95442.0,95414.0,0.023]
[1732807625179,0.209551,95442.0,95414.0,0.023]
[1732807625411,0.104785,95434.0,95421.0,0.023]
[1732807625640,0.30241576,95469.0,95421.0,0.023]
[1732807625641,0.001,95444.0,95424.0,0.20959]
[1732807625854,0.001,95444.0,95431.0,0.104787]
[1732807625855,0.10478,95438.0,95431.0,0.104787]
[1732807626078,0.0099188,95441.0,95432.0,0.1198876]
[1732807626340,0.001,95444.0,95433.0,0.04004239]
[1732807626589,0.001,95444.0,95437.0,0.023]
[1732807626830,0.0892508,95461.0,95438.0,0.1112533]
[1732807627086,0.104778,95439.0,95438.0,0.10284521]
[1732807627340,0.20955,95443.0,95428.0,0.023]
[1732807627341,0.104789,95429.0,95428.0,0.023]
[1732807627599,0.104789,95429.0,95428.0,0.15289095]
[1732807628081,0.209574,95432.0,95428.0,0.15289095]
[1732807628336,0.209531,95452.0,95428.0,0.15289095]
[1732807628337,0.104789,95429.0,95428.0,0.0434914]
[1732807628593,0.104789,95429.0,95428.0,0.02704586]
[1732807628843,0.104789,95429.0,95428.0,0.05364202]
[1732807629102,0.104789,95429.0,95428.0,0.06264202]
[1732807629358,0.0099018,95448.0,95429.0,0.023]
[1732807629612,0.0099018,95448.0,95430.0,0.13485022]
[1732807629855,0.15,95462.0,95438.0,0.209558]
[1732807630140,0.0768,95471.0,95442.0,0.104775]
[1732807630141,0.104766,95450.0,95442.0,0.104775]
[1732807630347,0.009913,95451.0,95445.0,0.104771]
[1732807630591,0.104767,95450.0,95446.0,0.1435733]
[1732807630837,0.0768,95471.0,95447.0,0.03015062]
[1732807630838,0.209507,95462.0,95447.0,0.03015062]
[1732807631090,0.00272658,95467.0,95447.0,0.03015062]
[1732807631091,0.104761,95455.0,95449.0,0.104766]
[1732807631335,0.209517,95458.0,95450.0,0.11333245]
[1732807631622,0.001,95462.0,95451.0,0.03015062]
[1732807631865,0.0008622,95467.0,95466.0,0.104749]
[1732807632112,0.0008622,95467.0,95466.0,0.14085792]
[1732807632363,0.0008622,95467.0,95466.0,0.26259859]
[1732807632603,0.0008622,95467.0,95466.0,0.24370313]
[1732807632816,0.0008622,95467.0,95466.0,0.26073199]
[1732807633054,0.0008622,95467.0,95466.0,0.26400779]
[1732807633817,0.0204326,95474.0,95466.0,0.26400779]
[1732807633818,0.0204326,95474.0,95471.0,0.01]
[1732807634069,0.0204326,95474.0,95473.0,0.23058621]
[1732807634332,0.0204326,95474.0,95473.0,0.26072399]
[1732807634616,0.0204326,95474.0,95473.0,0.27705039]
[1732807634861,0.0204326,95474.0,95473.0,0.28705039]
[1732807635186,0.0144326,95474.0,95473.0,0.28705039]
[1732807635631,0.0144326,95474.0,95473.0,0.29605039]
[1732807635812,0.0144326,95474.0,95473.0,0.28705039]
[1732807636077,0.0144326,95474.0,95473.0,0.29605039]
[1732807637071,0.0015702,95476.0,95473.0,0.29605039]
[1732807637072,0.0015702,95476.0,95475.0,0.01]
[1732807637318,0.0015702,95476.0,95475.0,0.43038495]
[1732807637571,0.0015702,95476.0,95475.0,0.43704839]
[1732807637819,0.0015702,95476.0,95475.0,0.43180757]
[1732807638064,0.0015702,95476.0,95475.0,0.26399779]
[1732807638548,0.0015702,95476.0,95475.0,0.14525879]
[1732807638790,0.0015702,95476.0,95475.0,0.15098299]
[1732807639314,0.0015702,95476.0,95475.0,0.25757564]
[1732807639566,0.0015702,95476.0,95475.0,0.25571881]
[1732807640074,0.0015702,95476.0,95475.0,0.25899394]
[1732807640335,0.0015702,95476.0,95475.0,0.28199394]
[1732807640559,0.0015702,95476.0,95475.0,0.15425494]
[1732807640800,0.0015702,95476.0,95475.0,0.25571881]
[1732807641520,0.0015702,95476.0,95475.0,0.15097981]
[1732807641769,0.0015702,95476.0,95475.0,0.15968719]
[1732807642257,0.0015702,95476.0,95475.0,0.15097981]
[1732807642776,0.1063082,95476.0,95475.0,0.15097981]
[1732807643026,0.1063082,95476.0,95475.0,0.15968967]
[1732807643269,0.1063082,95476.0,95475.0,0.15097981]
[1732807643766,0.1063082,95476.0,95475.0,0.25571881]
[1732807643767,0.0015702,95476.0,95475.0,0.25571881]
[1732807644046,0.1063082,95476.0,95475.0,0.15969141]
[1732807644282,0.1063082,95476.0,95475.0,0.15097981]
[1732807645008,0.1063082,95476.0,95475.0,0.13787781]
[1732807645894,0.1063082,95476.0,95475.0,0.12739621]
[1732807646121,0.0015702,95476.0,95475.0,0.23213521]
[1732807646368,0.0015702,95476.0,95475.0,0.26561682]
[1732807646836,0.0015702,95476.0,95475.0,0.27561682]
[1732807647071,0.0015702,95476.0,95475.0,0.28341876]
[1732807647316,0.001721,95491.0,95479.0,0.104735]
[1732807647543,0.001721,95491.0,95479.0,0.24946611]
[1732807647784,0.001721,95491.0,95479.0,0.24761282]
[1732807648885,0.001721,95491.0,95488.0,0.104725]
[1732807649136,0.001721,95491.0,95488.0,0.24760282]
[1732807650069,0.104714,95498.0,95492.0,0.10472]
[1732807650304,0.209431,95497.0,95493.0,0.10284521]
[1732807650604,0.104718,95494.0,95493.0,0.12584521]
[1732807650803,0.209415,95504.0,95488.0,0.01703261]
[1732807651020,0.104717,95495.0,95493.0,0.10284521]
[1732807651236,0.104718,95495.0,95493.0,0.10284521]
[1732807651449,0.20943,95497.0,95493.0,0.10284521]
[1732807651674,0.209415,95504.0,95494.0,0.01703261]
[1732807651880,0.209415,95504.0,95495.0,0.10284521]
[1732807652090,0.104714,95498.0,95495.0,0.10284521]
[1732807652335,0.0004,95509.0,95498.0,0.127714]
[1732807652606,0.104705,95506.0,95498.0,0.23055921]
[1732807652811,0.0004,95509.0,95498.0,0.23055921]
[1732807653049,0.104706,95506.0,95498.0,0.23055921]
[1732807653279,0.0004,95509.0,95498.0,0.23055921]
[1732807653730,0.105103,95509.0,95498.0,0.23055921]
[1732807653952,0.20941,95507.0,95498.0,0.23055921]
[1732807654190,0.104706,95506.0,95498.0,0.23055921]
[1732807654441,0.104711,95501.0,95498.0,0.13632394]
[1732807654660,0.209409,95507.0,95498.0,0.15597155]
[1732807654870,0.104709,95502.0,95498.0,0.15597155]
[1732807655104,0.0004,95509.0,95498.0,0.26968555]
[1732807655343,0.104703,95508.0,95498.0,0.25210841]
[1732807655593,0.0004,95509.0,95498.0,0.25210841]
[1732807655806,0.0004,95509.0,95498.0,0.26258719]
[1732807656713,0.0004,95509.0,95498.0,0.25210841]
[1732807656956,0.0004,95509.0,95498.0,0.26258659]
[1732807657163,0.0004,95509.0,95498.0,0.26586107]
[1732807657891,0.0004,95509.0,95498.0,0.27644864]
[1732807658815,0.0004,95509.0,95504.0,0.127707]
[1732807659053,0.0004,95509.0,95504.0,0.23055221]
[1732807659290,0.0004,95509.0,95504.0,0.25085372]
[1732807660449,0.0004,95509.0,95504.0,0.26880235]
[1732807660665,0.0004,95509.0,95504.0,0.25657959]
[1732807661145,0.0004,95509.0,95504.0,0.24757959]
[1732807661359,0.0004,95509.0,95504.0,0.26858611]
[1732807661572,0.0004,95509.0,95504.0,0.2508539]
[1732807661785,0.0004,95509.0,95504.0,0.2578539]
[1732807662047,0.0004,95509.0,95504.0,0.2668539]
[1732807662266,0.0004,95509.0,95504.0,0.2508539]
[1732807662502,0.0004,95509.0,95504.0,0.24757959]
[1732807663842,0.104699,95512.0,95507.0,0.104703]
[1732807664078,0.0017248,95514.0,95508.0,0.11987116]
[1732807664298,0.209399,95511.0,95504.0,0.016]
[1732807664529,0.1055678,95505.0,95504.0,0.016]
[1732807664781,0.0008618,95505.0,95504.0,0.11184521]
[1732807664997,0.209396,95513.0,95504.0,0.11184521]
[1732807664998,0.2042578,95513.0,95504.0,0.11839411]
[1732807665223,0.0017248,95514.0,95513.0,0.104697]
[1732807665473,0.0017248,95514.0,95513.0,0.24756941]
[1732807666815,0.0017248,95514.0,95513.0,0.14287241]
[1732807667041,0.0017248,95514.0,95513.0,0.14287066]
[1732807667258,0.1064208,95514.0,95513.0,0.14287066]
[1732807667477,0.1064208,95514.0,95513.0,0.10939346]
[1732807667731,0.1064208,95514.0,95513.0,0.11839346]
[1732807667967,0.1064208,95514.0,95513.0,0.24309046]
[1732807667968,0.0017248,95514.0,95513.0,0.24309046]
[1732807668191,0.0017248,95514.0,95513.0,0.25356759]
[1732807668420,0.0017248,95514.0,95513.0,0.24609046]
[1732807668864,0.0017248,95514.0,95513.0,0.25109046]
[1732807669355,0.0017248,95514.0,95513.0,0.2615672]
[1732807669819,0.0017248,95514.0,95513.0,0.2525672]
[1732807670037,0.0017248,95514.0,95513.0,0.3232672]
[1732807670261,0.0017248,95514.0,95513.0,0.31524221]
[1732807670487,0.0017248,95514.0,95513.0,0.33926566]
[1732807670726,0.00086,95526.0,95513.0,0.33926566]
[1732807670727,0.00086,95526.0,95524.0,0.104685]
[1732807670938,0.00086,95526.0,95524.0,0.44500597]
[1732807671160,0.00086,95526.0,95524.0,0.54668473]
[1732807671405,0.0008599,95534.0,95531.0,0.01]
[1732807671633,0.0004,95549.0,95544.0,0.127663]
[1732807671860,0.0004,95549.0,95544.0,0.27098684]
[1732807672091,0.0004,95549.0,95544.0,0.26913486]
[1732807672352,0.0004,95549.0,95544.0,0.27913486]
[1732807672561,0.0004,95549.0,95548.0,0.137659]
[1732807672795,0.0004,95549.0,95548.0,0.39742051]
[1732807673013,0.0004,95569.0,95551.0,0.137656]
[1732807673271,0.0004,95569.0,95551.0,0.24050121]
[1732807673529,0.0004,95569.0,95568.0,0.127637]
[1732807673732,0.0004,95569.0,95568.0,0.23048221]
[1732807673977,0.0004,95569.0,95568.0,0.16792938]
[1732807674212,0.0004,95569.0,95568.0,0.27256638]
[1732807674907,0.0004,95569.0,95568.0,0.17292938]
[1732807675375,0.0004,95569.0,95568.0,0.15595069]
[1732807675585,0.00566178,95569.0,95568.0,0.14286135]
[1732807675823,0.0004,95569.0,95568.0,0.14286135]
[1732807676292,0.105036,95569.0,95568.0,0.15186135]
[1732807676546,0.00566178,95569.0,95568.0,0.14286135]
[1732807676791,0.11115958,95569.0,95568.0,0.12886135]
[1732807677044,0.11115958,95569.0,95568.0,0.11986135]
[1732807677264,0.11115958,95569.0,95568.0,0.12486135]
[1732807677471,0.11115958,95569.0,95568.0,0.12338988]
[1732807677713,0.11115958,95569.0,95568.0,0.10938988]
[1732807678146,0.11115958,95569.0,95568.0,0.12338988]
[1732807678608,0.00652358,95569.0,95568.0,0.11184521]
[1732807678823,0.00652358,95569.0,95568.0,0.13884521]
[1732807679056,0.00652358,95569.0,95568.0,0.14539001]
[1732807679291,0.00652358,95569.0,95568.0,0.24102701]
[1732807679292,0.0012618,95569.0,95568.0,0.24102701]
[1732807679492,0.0008618,95572.0,95571.0,0.104634]
[1732807679706,0.0008618,95572.0,95571.0,0.23702401]
[1732807680181,0.1015448,95581.0,95572.0,0.023]
[1732807680389,0.1008618,95585.0,95574.0,0.023]
[1732807680634,0.104629,95575.0,95574.0,0.023]
[1732807680908,0.104629,95575.0,95574.0,0.10938969]
[1732807681124,0.104627,95577.0,95574.0,0.10938969]
[1732807681353,0.00526178,95575.0,95572.0,0.023]
[1732807681581,0.104629,95576.0,95573.0,0.00654452]
[1732807681831,0.20924,95584.0,95573.0,0.20747721]
[1732807681832,0.00526178,95574.0,95573.0,0.20747721]
[1732807682040,0.1008618,95585.0,95575.0,0.023]
[1732807682261,0.104627,95577.0,95576.0,0.13238973]
[1732807682489,0.1008618,95585.0,95577.0,0.023]
[1732807682705,0.104625,95579.0,95578.0,0.10938961]
[1732807683395,0.209242,95583.0,95578.0,0.10938961]
[1732807683622,0.104625,95579.0,95578.0,0.10284521]
[1732807683834,0.104625,95579.0,95578.0,0.10938963]
[1732807684084,0.104625,95579.0,95578.0,0.11838963]
[1732807684295,0.104625,95579.0,95578.0,0.10938963]
[1732807684523,0.1008618,95585.0,95579.0,0.127625]
[1732807684801,0.1008618,95585.0,95582.0,0.104621]
[1732807685017,0.1008618,95585.0,95577.0,0.209254]
[1732807685018,0.1008618,95585.0,95583.0,0.21400963]
[1732807685228,0.1008618,95585.0,95584.0,0.00654442]
[1732807685444,0.1008618,95585.0,95584.0,0.11985972]
[1732807685882,0.1008618,95585.0,95584.0,0.14285972]
[1732807686114,0.1008618,95585.0,95584.0,0.2409353]
[1732807686371,0.1008618,95585.0,95584.0,0.24747925]
[1732807686617,0.1008618,95585.0,95584.0,0.26056654]
[1732807687049,0.1008618,95585.0,95584.0,0.26956654]
[1732807688164,0.1008618,95585.0,95584.0,0.27256654]
[1732807688589,0.1008618,95585.0,95584.0,0.25947925]
[1732807688812,0.1008618,95585.0,95584.0,0.45177925]
[1732807689245,0.0004,95589.0,95584.0,0.45177925]
[1732807689246,0.0004,95589.0,95588.0,0.127615]
[1732807689475,0.0004,95589.0,95588.0,0.23046021]
[1732807689706,0.0004,95589.0,95588.0,0.24747425]
[1732807690609,0.0004,95589.0,95588.0,0.2507455]
[1732807691085,0.0004,95589.0,95588.0,0.26842551]
[1732807691330,0.0004,95589.0,95588.0,0.1551305]
[1732807691563,0.0004,95589.0,95588.0,0.25647425]
[1732807691779,0.0004,95589.0,95588.0,0.26447425]
[1732807692005,0.0004,95589.0,95588.0,0.15985925]
[1732807692259,0.105014,95589.0,95588.0,0.15185925]
[1732807692683,0.105014,95589.0,95588.0,0.14938907]
[1732807692936,0.105014,95589.0,95588.0,0.13384521]
[1732807693657,0.105014,95589.0,95588.0,0.14284521]
[1732807693873,0.0004,95589.0,95588.0,0.13384521]
[1732807694091,0.0004,95589.0,95588.0,0.23846021]
[1732807694306,0.0004,95589.0,95588.0,0.25400351]
[1732807694523,0.104605,95597.0,95591.0,0.104611]
[1732807694761,0.209206,95600.0,95592.0,0.12584521]
[1732807694992,0.104609,95594.0,95592.0,0.12584521]
[1732807695199,0.209207,95599.0,95592.0,0.12584521]
[1732807695416,0.104606,95597.0,95592.0,0.12584521]
[1732807695863,0.104604,95598.0,95592.0,0.23045521]
[1732807696361,0.104604,95598.0,95594.0,0.023]
[1732807696587,0.104604,95598.0,95595.0,0.10938827]
[1732807696813,0.209206,95600.0,95596.0,0.02954306]
[1732807697062,0.209206,95600.0,95597.0,0.10284521]
[1732807697063,0.104605,95598.0,95597.0,0.10284521]
[1732807697506,0.104605,95598.0,95559.0,0.209293]
[1732807697507,0.17971,95593.0,95592.0,0.006]
[1732807697958,0.209237,95585.0,95577.0,0.104627]
[1732807698190,0.209237,95585.0,95572.0,0.00185154]
[1732807698191,0.104625,95580.0,95578.0,0.1198593]
[1732807698402,0.104625,95579.0,95578.0,0.10284521]
[1732807698643,0.104625,95579.0,95578.0,0.11985928]
[1732807699569,0.0751,95593.0,95578.0,0.11985972]
[1732807699570,0.209222,95592.0,95578.0,0.11985972]
[1732807699813,0.418448,95591.0,95579.0,0.01701451]
[1732807700026,0.0751,95593.0,95580.0,0.10284521]
[1732807700265,0.104623,95581.0,95580.0,0.10284521]
[1732807700480,0.104623,95581.0,95580.0,0.11985982]
[1732807700912,0.104621,95583.0,95580.0,0.11985982]
[1732807701162,0.000861,95581.0,95580.0,0.10284521]
[1732807701375,0.000861,95581.0,95580.0,0.11985961]
[1732807701376,0.105484,95581.0,95580.0,0.11985961]
[1732807701641,0.105484,95581.0,95580.0,0.12485961]
[1732807701873,0.11006593,95581.0,95580.0,0.12485961]
[1732807702119,0.11006593,95581.0,95580.0,0.11985961]
[1732807702344,0.11006593,95581.0,95580.0,0.12485961]
[1732807702811,0.00544293,95581.0,95580.0,0.26148361]
[1732807703052,0.00544293,95581.0,95580.0,0.37828361]
[1732807703276,0.00544293,95581.0,95580.0,0.53828361]
[1732807703520,0.209175,95614.0,95580.0,0.53828361]
[1732807703521,0.209175,95614.0,95600.0,0.104602]
[1732807703792,0.104993,95609.0,95600.0,0.24931274]
[1732807704027,0.104599,95603.0,95600.0,0.14285961]
[1732807704480,0.00547592,95601.0,95600.0,0.14285961]
[1732807704701,0.0008616,95601.0,95600.0,0.14285961]
[1732807704920,0.00547592,95601.0,95600.0,0.14285961]
[1732807705157,0.0008616,95601.0,95600.0,0.24746161]
[1732807705406,0.00547592,95601.0,95600.0,0.24746161]
[1732807705659,0.0008616,95601.0,95600.0,0.24746161]
[1732807705913,0.0008616,95601.0,95600.0,0.25246161]
[1732807706133,0.0008616,95601.0,95600.0,0.25245728]
[1732807707013,0.0008616,95601.0,95600.0,0.26145728]
[1732807707543,0.0008616,95601.0,95600.0,0.24745728]
[1732807707765,0.0008616,95601.0,95600.0,0.26145728]
[1732807708003,0.0008616,95601.0,95600.0,0.25245728]
[1732807708262,0.0008616,95601.0,95600.0,0.24745728]